bitfinex-derivatives/quotes_ETHF0:USTF0_20250614
["timestamp","ask_amount","ask_price","bid_price","bid_amount"]
[1749934319438,1.99185,2509.3,2508.9,0.79685]
[1749934319642,0.79686,2508.9,2508.8,1.2692]
[1749934319848,1.88540532,2508.9,2508.8,1.2692]
[1749934320040,0.79692,2508.7,2508.6,1.3403]
[1749934320345,0.79702,2508.4,2508.3,1.2692]
[1749934320544,1.08854532,2508.4,2508.3,2.06625]
[1749934321447,1.88556532,2508.4,2508.3,2.06625]
[1749934321649,1.08854532,2508.4,2508.3,2.06625]
[1749934322037,0.79695,2508.6,2508.5,0.79696]
[1749934322237,0.79699,2508.5,2508.4,0.79699]
[1749934322441,1.88523886,2508.5,2508.4,0.79699]
[1749934322735,1.08824886,2508.5,2508.4,0.79699]
[1749934322940,1.88522886,2508.5,2508.4,0.79699]
[1749934323139,1.08824886,2508.5,2508.4,0.79699]
[1749934323744,1.08677208,2508.5,2508.3,1.2692]
[1749934323945,0.79696,2508.6,2508.5,0.79696]
[1749934324348,1.08676922,2508.6,2508.5,0.79696]
[1749934324639,1.08676922,2508.6,2508.5,4.00476]
[1749934324843,0.00597705,2508.9,2508.8,0.79689]
[1749934325040,0.00597705,2508.9,2508.8,4.00469]
[1749934325242,0.00597705,2508.9,2508.8,9.00469]
[1749934325844,0.00597705,2508.9,2508.8,40.05869]
[1749934327444,0.00597705,2508.9,2508.8,9.00469]
[1749934327748,0.00597705,2508.9,2508.8,4.00469]
[1749934327951,0.80283705,2508.9,2508.8,3.2078]
[1749934328146,0.79692,2508.7,2508.6,1.2861]
[1749934328348,1.88331855,2508.7,2508.6,1.2861]
[1749934328950,0.79698,2508.5,2508.4,3.2078]
[1749934329448,0.6819,2508.8,2508.4,4.00479]
[1749934329643,0.6819,2508.8,2508.5,1.3109]
[1749934329644,0.79697,2508.6,2508.5,1.3109]
[1749934330343,0.79698,2508.5,2508.4,3.2078]
[1749934331049,0.79698,2508.5,2508.4,5.37511]
[1749934331251,0.79698,2508.5,2508.4,4.5781]
[1749934332146,0.79698,2508.5,2508.4,5.37511]
[1749934332347,0.79698,2508.5,2508.4,4.5781]
[1749934332952,0.79698,2508.5,2508.4,5.37511]
[1749934333253,6.45997705,2508.9,2508.6,0.79695]
[1749934333550,1.88244207,2508.8,2508.7,0.6411]
[1749934334758,1.08555207,2508.8,2508.7,1.43802]
[1749934334951,0.80285705,2508.9,2508.8,0.79689]
[1749934335254,0.80285705,2508.9,2508.8,2.0054]
[1749934336153,0.80285705,2508.9,2508.8,2.80229]
[1749934336553,0.80285705,2508.9,2508.8,2.0054]
[1749934336749,0.80285705,2508.9,2508.8,2.80229]
[1749934337853,0.80285705,2508.9,2508.8,2.0054]
[1749934338746,0.80285705,2508.9,2508.8,0.6477]
[1749934338956,0.79689,2508.8,2508.7,0.6411]
[1749934339154,1.48269,2508.8,2508.7,0.6411]
[1749934340655,0.07406973,2508.9,2508.8,0.79689]
[1749934340847,0.00597705,2508.9,2508.8,0.79689]
[1749934341051,0.00597705,2508.9,2508.8,2.11679]
[1749934341953,0.07406973,2508.9,2508.8,7.11679]
[1749934342151,3.2078,2509.6,2509.5,0.79666]
[1749934342352,3.2078,2509.9,2509.8,0.79657]
[1749934342656,4.29547406,2509.9,2509.8,0.79657]
[1749934342851,3.2078,2509.9,2509.8,0.79657]
[1749934343052,3.8385,2510.3,2509.7,3.2078]
[1749934343255,0.79654,2509.9,2509.8,2.17827]
[1749934343455,0.79653,2510.0,2509.8,2.17827]
[1749934343651,0.79654,2509.9,2509.8,1.3817]
[1749934344260,0.7966,2509.7,2509.6,0.00597705]
[1749934345259,1.88989807,2509.7,2509.6,0.00597705]
[1749934345558,3.95209807,2509.7,2509.6,0.00597705]
[1749934347259,2.57549807,2509.7,2509.6,0.00597705]
[1749934348153,3.95209807,2509.7,2509.6,0.00597705]
[1749934349162,2.57549807,2509.7,2509.6,0.00597705]
[1749934350863,1.4822,2509.7,2509.6,0.00597705]
[1749934351055,2.57455936,2509.7,2509.6,0.00597705]
[1749934351255,3.90035936,2509.7,2509.6,0.00597705]
[1749934351650,0.79676,2509.2,2509.1,10.3096]
[1749934351853,0.79679,2509.1,2509.0,6.444]
[1749934352059,0.06809268,2508.9,2508.8,1.45279]
[1749934352366,0.06809268,2508.9,2508.8,7.89679]
[1749934352560,0.06809268,2508.9,2508.8,12.89679]
[1749934352760,0.06809268,2508.9,2508.8,14.18769]
[1749934354661,0.06809268,2508.9,2508.8,38.77669]
[1749934355061,0.79674,2509.3,2509.2,0.79676]
[1749934355259,1.9941,2509.5,2508.9,1.3219]
[1749934355454,3.2078,2509.3,2508.8,7.0999]
[1749934355661,0.79684,2509.0,2508.9,0.79684]
[1749934356759,0.79674,2509.3,2509.2,0.79673]
[1749934356960,0.79673,2509.3,2509.2,0.79673]
[1749934357156,0.7967,2509.4,2509.3,0.79673]
[1749934357661,1.42828,2509.5,2509.4,0.7967]
[1749934357854,4.00446,2509.6,2509.5,0.79666]
[1749934359064,0.79673,2509.4,2509.3,0.79671]
[1749934359462,0.79668,2509.5,2509.4,0.79667]
[1749934361663,3.2078,2509.6,2509.5,0.79666]
[1749934363064,0.86471268,2509.7,2509.3,3.29161]
[1749934363065,0.86471268,2509.7,2509.6,0.79663]
[1749934363272,0.86471268,2509.7,2509.5,0.79664]
[1749934363273,0.79665,2509.6,2509.5,0.79664]
[1749934363974,0.06809268,2509.7,2509.6,0.79663]
[1749934364173,1.95969784,2509.7,2509.6,0.79663]
[1749934365173,1.16309784,2509.7,2509.6,0.79663]
[1749934365368,0.06809268,2509.7,2509.6,0.79663]
[1749934365780,0.06809268,2509.7,2509.6,7.90673]
[1749934365973,0.06809268,2509.7,2509.6,8.54483]
[1749934366377,0.06809268,2509.7,2509.6,11.75263]
[1749934367276,0.79652,2510.0,2509.9,0.79652]
[1749934367476,1.09531196,2510.0,2509.9,0.79654]
[1749934367675,1.89182196,2510.0,2509.9,0.79654]
[1749934368878,0.79656,2509.9,2509.8,0.79655]
[1749934369382,0.79656,2509.9,2509.6,10.956]
[1749934369383,0.7966,2509.7,2509.6,0.79663]
[1749934370283,0.86469268,2509.7,2509.6,0.79663]
[1749934371684,0.06809268,2509.7,2509.6,0.79663]
[1749934374595,0.86469268,2509.7,2509.6,0.79663]
[1749934374792,0.7967,2509.4,2509.3,3.2078]
[1749934374991,0.79676,2509.2,2509.1,31.81179]
[1749934375395,0.79676,2509.2,2509.1,7.23279]
[1749934375597,0.79676,2509.2,2509.1,31.81179]
[1749934377599,1.45835,2509.3,2509.1,31.015]
[1749934377792,1.45835,2509.3,2509.2,0.79676]
[1749934377998,0.79678,2509.2,2509.1,0.79676]
[1749934378398,1.99199,2509.1,2508.6,3.21377705]
[1749934378598,0.79692,2508.7,2508.6,3.21377705]
[1749934379300,0.79692,2508.7,2508.6,4.01072705]
[1749934379604,1.45178,2508.9,2508.8,0.79689]
[1749934379804,0.79689,2508.8,2508.7,1.4359]
[1749934380005,1.89219611,2508.8,2508.7,2.7495]
[1749934380208,0.79689,2508.8,2508.7,2.7495]
[1749934380406,0.6549,2508.9,2508.8,0.79689]
[1749934380610,0.6904,2509.1,2508.8,1.9612]
[1749934380903,1.45826,2509.2,2509.1,0.79679]
[1749934381106,1.75660848,2509.2,2508.8,1.9612]
[1749934381307,1.89190848,2509.1,2509.0,0.79681]
[1749934381909,1.09510848,2509.1,2508.8,1.9612]
[1749934382206,0.79686,2509.0,2508.9,0.79686]
[1749934382401,0.7968,2509.1,2509.0,0.79681]
[1749934382710,1.8923345,2509.1,2509.0,0.79681]
[1749934382904,1.8923245,2509.1,2509.0,0.79681]
[1749934383904,1.0955345,2509.1,2508.7,0.639]
[1749934384110,0.79689,2508.8,2508.7,25.22]
[1749934384703,0.79692,2508.7,2508.6,3.21377705]
[1749934384906,1.45032,2508.7,2508.6,27.79477705]
[1749934385311,1.45032,2508.7,2508.6,28.59172705]
[1749934386213,0.79686,2508.9,2508.8,0.79689]
[1749934387204,0.79687,2508.9,2508.8,0.79686]
[1749934388512,0.79683,2509.0,2508.9,0.79683]
[1749934389612,0.79684,2509.0,2508.9,0.79684]
[1749934389813,3.8876,2509.1,2508.8,1.3346]
[1749934390015,4.6844,2509.1,2509.0,0.79682]
[1749934391106,0.06809268,2509.2,2509.1,0.79679]
[1749934391716,0.06809268,2509.2,2509.1,1.45879]
[1749934394010,0.06809268,2509.2,2509.1,2.79309]
[1749934394704,3.2078,2509.7,2509.6,0.79663]
[1749934395213,3.2078,2509.7,2509.5,24.579]
[1749934395214,0.79663,2509.6,2509.5,25.37564]
[1749934395521,4.00441,2509.7,2509.6,0.79663]
[1749934395911,0.79663,2509.6,2509.5,25.2707]
[1749934396114,0.79663,2509.6,2509.5,26.06736]
[1749934396513,0.79663,2509.6,2509.5,25.2707]
[1749934396914,0.79663,2509.6,2509.5,26.06736]
[1749934397519,0.79663,2509.6,2509.5,25.2707]
[1749934398117,0.79663,2509.6,2509.5,26.06736]
[1749934398419,0.79663,2509.6,2509.5,25.2707]
[1749934398913,3.2078,2509.7,2509.3,4.64072]
[1749934399119,0.6612,2509.5,2509.4,31.8037]
[1749934399326,1.45786,2509.5,2509.4,31.8037]
[1749934401120,1.45786,2509.5,2509.4,0.7967]
[1749934401318,1.45786,2509.5,2509.4,25.3707]
[1749934402912,0.6612,2509.5,2509.4,25.3707]
[1749934403112,0.06809268,2509.6,2509.5,0.79666]
[1749934404622,2.05970268,2509.6,2509.3,6.431]
[1749934404829,0.79679,2509.1,2509.0,3.2078]
[1749934405321,1.89155076,2509.1,2509.0,27.7798]
[1749934405725,1.89155076,2509.1,2509.0,3.2078]
[1749934405927,0.79679,2509.1,2509.0,3.2078]
[1749934406919,0.79682,2509.0,2508.9,6.431]
[1749934407223,1.44192,2509.0,2508.9,31.002]
[1749934407928,0.6451,2509.0,2508.7,0.6381]
[1749934408126,0.79689,2508.8,2508.7,0.6381]
[1749934408330,0.79692,2508.7,2508.6,3.21377705]
[1749934408515,0.79692,2508.7,2508.6,0.00597705]
[1749934408723,0.79705,2508.3,2507.8,27.3098]
[1749934408921,0.79717,2507.9,2507.8,9.6398]
[1749934409417,0.79717,2507.9,2507.8,31.003]
[1749934410217,0.79724,2507.7,2507.6,1.43755468]
[1749934410433,0.79724,2507.7,2507.6,25.21128468]
[1749934410929,0.7972,2507.9,2507.7,0.79722]
[1749934411127,0.7972,2507.8,2507.7,0.79722]
[1749934411524,0.7972,2507.8,2507.6,27.27392468]
[1749934412017,4.54397705,2508.1,2507.6,27.27392468]
[1749934412429,0.79722,2507.8,2507.7,0.79724]
[1749934412628,0.79724,2507.7,2507.6,2.70292468]
[1749934412829,0.79724,2507.7,2507.6,32.44352468]
[1749934413135,0.79724,2507.7,2507.6,0.00398468]
[1749934419227,0.79724,2507.7,2507.6,0.80125468]
[1749934419424,0.06809268,2507.9,2507.8,0.7972]
[1749934419636,0.06809268,2507.9,2507.8,28.584]
[1749934419823,0.06809268,2507.9,2507.8,29.9658]
[1749934421025,0.00597705,2508.1,2508.0,0.79714]
[1749934421232,0.80308705,2508.1,2507.9,0.79716]
[1749934421430,0.79714,2508.0,2507.9,1.3359]
[1749934421631,0.79714,2508.0,2507.9,2.13307]
[1749934422331,0.80310705,2508.1,2508.0,0.79714]
[1749934423437,0.80310705,2508.1,2508.0,25.37814]
[1749934423638,0.00597705,2508.1,2508.0,25.37814]
[1749934423833,0.80308705,2508.1,2508.0,25.37814]
[1749934424238,0.80308705,2508.1,2508.0,24.581]
[1749934424426,0.80308705,2508.1,2508.0,25.37814]
[1749934425239,0.00597705,2508.1,2508.0,25.37814]
[1749934428744,0.80308705,2508.1,2508.0,25.37814]
[1749934430046,0.80308705,2508.1,2508.0,31.80614]
[1749934430344,0.87117973,2508.1,2508.0,31.80614]
[1749934430944,0.87117973,2508.1,2508.0,31.009]
[1749934431742,0.87117973,2508.1,2508.0,32.2884]
[1749934432342,0.87117973,2508.1,2508.0,33.08554]
[1749934432743,0.87117973,2508.1,2508.0,1.2794]
[1749934433042,0.87117973,2508.1,2508.0,32.2874]
[1749934435946,0.07406973,2508.1,2507.8,3.2078]
[1749934436145,0.87117973,2508.1,2508.0,24.577]
[1749934436352,0.80308705,2508.1,2508.0,24.577]
[1749934436850,0.79714,2508.0,2507.9,6.429]
[1749934437144,0.79714,2508.0,2507.9,31.006]
[1749934437353,0.79714,2508.0,2507.9,6.429]
[1749934437545,0.79724,2507.7,2507.6,24.58098468]
[1749934438052,1.89470729,2507.7,2507.6,0.00398468]
[1749934438444,2.58400729,2507.7,2507.6,0.00398468]
[1749934438647,3.92950729,2507.7,2507.6,0.00398468]
[1749934438949,2.58400729,2507.7,2507.6,0.00398468]
[1749934440950,3.97370729,2507.7,2507.6,0.00398468]
[1749934441356,7.18150729,2507.7,2507.6,0.00398468]
[1749934442859,5.79180729,2507.7,2507.6,0.00398468]
[1749934445448,5.85989997,2507.7,2507.6,0.00398468]
[1749934447257,7.19849997,2507.7,2507.6,0.00398468]
[1749934449863,1.99328,2507.5,2507.2,24.577]
[1749934450055,0.7974,2507.2,2507.1,3.8605]
[1749934450258,0.7974,2507.2,2507.1,28.4385]
[1749934450459,0.7974,2507.2,2507.1,29.23593]
[1749934450658,0.7974,2507.2,2507.1,30.58473]
[1749934450859,0.79739,2507.3,2507.2,0.79736]
[1749934451563,5.20066,2508.0,2507.2,6.3488]
[1749934451863,0.00597705,2508.1,2508.0,0.79714]
[1749934452061,1.90005829,2508.1,2508.0,1.9558]
[1749934452253,0.79717,2507.9,2507.8,24.577]
[1749934452450,0.79717,2507.9,2507.8,25.3742]
[1749934452659,0.79717,2507.9,2507.8,24.577]
[1749934453256,0.7972,2507.8,2507.7,0.6409]
[1749934453461,0.6651,2508.0,2507.7,25.2189]
[1749934453661,0.7972,2507.8,2507.7,26.01611]
[1749934453866,0.79719,2507.9,2507.8,0.79719]
[1749934454464,0.00597705,2508.1,2507.7,26.5338]
[1749934454665,0.80309705,2508.1,2508.0,0.79714]
[1749934454861,1.10318562,2508.1,2508.0,0.79714]
[1749934455068,0.00597705,2508.1,2508.0,0.79714]
[1749934455260,0.80308705,2508.1,2508.0,2.07284]
[1749934455454,0.00597705,2508.1,2508.0,26.64884]
[1749934456567,0.00597705,2508.1,2508.0,29.85664]
[1749934457764,0.00597705,2508.1,2508.0,29.0595]
[1749934457765,0.80308705,2508.1,2508.0,29.0595]
[1749934457975,0.80308705,2508.1,2508.0,29.85664]
[1749934458670,0.00597705,2508.1,2508.0,29.85664]
[1749934459169,0.80308705,2508.1,2508.0,29.85664]
[1749934460273,0.00597705,2508.1,2508.0,29.85664]
[1749934460771,0.80308705,2508.1,2508.0,29.85664]
[1749934461272,0.00597705,2508.1,2508.0,29.85664]
[1749934463465,0.80308705,2508.1,2508.0,3.2078]
[1749934463673,0.7972,2507.8,2507.7,3.8487]
[1749934463864,0.7972,2507.8,2507.7,28.4197]
[1749934464061,0.79727,2507.6,2507.5,7.7441]
[1749934464269,0.79727,2507.6,2507.5,32.3141]
[1749934464472,0.692,2508.0,2507.5,32.3141]
[1749934464676,0.79721,2507.8,2507.7,0.79722]
[1749934464970,0.7972,2507.8,2507.7,0.79722]
[1749934465166,0.79724,2507.7,2507.6,0.79725]
[1749934465372,0.79724,2507.7,2507.6,25.36625]
[1749934467276,0.79724,2507.7,2507.6,26.62245]
[1749934468675,0.79717,2507.9,2507.8,0.79719]
[1749934468875,1.09735354,2507.9,2507.8,0.79719]
[1749934469075,1.09735354,2507.9,2507.8,25.36619]
[1749934469371,1.89452354,2507.9,2507.8,25.36619]
[1749934469875,1.89452354,2507.9,2507.8,24.569]
[1749934471068,1.89452354,2507.9,2507.8,25.3662]
[1749934471577,1.89452354,2507.9,2507.8,24.569]
[1749934472372,2.57552354,2507.9,2507.8,24.569]
[1749934474681,2.57552354,2507.9,2507.8,25.3662]
[1749934475371,1.89452354,2507.9,2507.8,25.3662]
[1749934480183,1.89452354,2507.9,2507.8,24.569]
[1749934480479,0.79724,2507.7,2507.6,2.09705]
[1749934480681,1.89459354,2507.7,2507.6,26.66305]
[1749934480977,1.89459354,2507.7,2507.6,25.36225]
[1749934481781,1.89459354,2507.7,2507.6,0.79725]
[1749934481978,0.7973,2507.5,2507.3,0.6427]
[1749934482191,0.79736,2507.3,2507.2,4.00519]
[1749934482478,0.79736,2507.3,2507.2,28.57019]
[1749934483876,0.79736,2507.3,2507.2,0.79739]
[1749934484078,0.79736,2507.3,2507.2,25.36139]
[1749934485384,0.79736,2507.3,2507.2,25.36239]
[1749934485579,0.79736,2507.3,2507.2,25.36139]
[1749934486284,0.79735,2507.4,2507.3,0.79734]
[1749934486479,1.43639,2507.6,2507.5,0.7973]
[1749934486782,2.53593911,2507.6,2507.5,0.7973]
[1749934487586,0.79732,2507.5,2507.4,0.79731]
[1749934487784,0.79733,2507.4,2507.3,4.4749]
[1749934487987,0.79738,2507.3,2507.2,0.79738]
[1749934488282,0.79738,2507.3,2507.2,25.36138]
[1749934488687,0.79735,2507.4,2507.3,0.79734]
[1749934488886,1.89744466,2507.4,2507.3,0.79734]
[1749934489993,1.10009466,2507.4,2507.3,4.00514]
[1749934490181,1.50449268,2507.6,2507.5,0.7973]
[1749934490382,1.16827031,2507.6,2507.5,0.7973]
[1749934491087,0.7972,2507.9,2507.8,0.7972]
[1749934491589,1.89752828,2507.9,2507.8,0.7972]
[1749934492493,0.79723,2507.8,2507.7,0.79721]
[1749934492787,1.9932,2507.6,2507.0,3.2078]
[1749934492991,0.79743,2507.2,2507.1,0.79741]
[1749934493194,0.79743,2507.1,2507.0,3.2078]
[1749934493392,2.5390718,2507.1,2507.0,3.2078]
[1749934495292,2.5390718,2507.1,2507.0,4.00526]
[1749934495493,1.43783,2507.1,2507.0,3.2078]
[1749934495794,2.53855663,2507.1,2507.0,3.2078]
[1749934496187,2.53855663,2507.1,2507.0,4.00526]
[1749934497087,1.74112663,2507.1,2507.0,4.00526]
[1749934497287,1.10072663,2507.1,2507.0,4.00526]
[1749934497689,1.89815663,2507.1,2507.0,4.00526]
[1749934497986,1.89815663,2507.1,2507.0,3.2078]
[1749934498995,1.89815663,2507.1,2507.0,4.00526]
[1749934499596,1.89815663,2507.1,2507.0,3.2078]
[1749934500297,1.89815663,2507.1,2507.0,4.00526]
[1749934500591,1.89815663,2507.1,2507.0,3.2078]
[1749934502090,0.79752,2506.8,2506.7,3.2078]
[1749934502692,0.79755,2506.7,2506.6,7.91168]
[1749934502989,0.79761,2506.6,2506.5,0.7976]
[1749934503187,0.00597705,2506.8,2506.4,3.8636]
[1749934503391,0.7976,2506.6,2506.5,0.79759]
[1749934503601,0.7976,2506.6,2506.5,25.35959]
[1749934503892,0.00597705,2506.8,2506.7,0.79755]
[1749934503893,0.80352705,2506.8,2506.7,0.79755]
[1749934504094,1.10549431,2506.8,2506.7,0.79755]
[1749934504294,0.00597705,2506.8,2506.7,0.79755]
[1749934504493,0.00597705,2506.8,2506.7,4.00535]
[1749934505502,6.42,2507.3,2506.8,1.99379]
[1749934505801,1.09982816,2507.2,2507.1,4.00523]
[1749934505991,0.79737,2507.3,2507.2,0.7974]
[1749934506199,0.6619,2507.5,2507.1,5.20137]
[1749934506398,1.89714189,2507.4,2507.3,0.79736]
[1749934506593,1.09981189,2507.4,2507.3,1.47726]
[1749934507400,1.89714189,2507.4,2507.3,1.47726]
[1749934507598,0.00597705,2507.6,2507.5,0.7973]
[1749934507805,1.10587611,2507.6,2507.5,0.7973]
[1749934508808,0.00597705,2507.6,2507.5,2.7459]
[1749934508999,0.6364,2508.3,2507.8,1.99301]
[1749934509199,1.09983109,2508.2,2507.9,26.5579]
[1749934509399,0.79712,2508.1,2508.0,0.79713]
[1749934509599,0.79706,2508.3,2507.9,26.5579]
[1749934509901,1.09960575,2508.2,2508.1,0.79711]
[1749934510904,1.09925291,2508.2,2507.9,0.687]
[1749934511203,0.79714,2508.0,2507.9,24.559]
[1749934511406,1.09914716,2508.0,2507.9,24.559]
[1749934511603,10.28867705,2508.4,2507.9,24.559]
[1749934511900,0.79711,2508.1,2508.0,0.79714]
[1749934512105,1.89622498,2508.1,2508.0,0.79714]
[1749934512401,1.09911498,2508.1,2508.0,0.79714]
[1749934512601,0.79707,2508.3,2508.2,0.79708]
[1749934512906,0.79711,2508.1,2508.0,2.11382]
[1749934515910,0.79709,2508.2,2508.1,0.79708]
[1749934519108,0.79711,2508.1,2508.0,2.11382]
[1749934519511,0.86519268,2508.2,2508.1,0.79711]
[1749934519714,0.06809268,2508.2,2508.1,0.79711]
[1749934519918,0.06809268,2508.2,2508.1,1.46111]
[1749934520217,0.86517268,2508.2,2508.1,1.46111]
[1749934520519,0.06809268,2508.2,2508.1,4.66891]
[1749934520919,0.06809268,2508.2,2508.1,5.34621]
[1749934522422,0.80299705,2508.4,2508.3,0.79705]
[1749934523223,0.00597705,2508.4,2508.3,0.79705]
[1749934523721,0.80298705,2508.4,2508.3,0.79705]
[1749934525326,0.00597705,2508.4,2508.3,0.79705]
[1749934525525,0.07406973,2508.4,2508.3,0.79705]
[1749934525726,0.87107973,2508.4,2508.3,0.79705]
[1749934526023,0.07406973,2508.4,2508.3,0.79705]
[1749934526228,0.79692,2508.8,2508.7,0.7969]
[1749934527526,0.79692,2508.8,2508.7,4.0047]
[1749934527724,1.48890705,2509.0,2508.9,0.79685]
[1749934528027,0.79686,2508.9,2508.8,0.79686]
[1749934528828,1.48891705,2509.0,2508.9,0.79686]
[1749934529731,0.79687,2508.9,2508.8,0.79686]
[1749934531532,0.79689,2508.8,2508.7,4.5822]
[1749934531731,0.79689,2508.8,2508.7,3.2078]
[1749934532733,0.79689,2508.8,2508.7,4.00472]
[1749934533130,0.79689,2508.8,2508.7,3.2078]
[1749934533335,0.79695,2508.6,2508.5,0.00597705]
[1749934534136,2.13725,2508.6,2508.5,0.00597705]
[1749934535133,3.23409876,2508.6,2508.5,0.00597705]
[1749934537439,2.43714876,2508.6,2508.5,0.80295705]
[1749934537934,1.76944876,2508.6,2508.5,4.01075705]
[1749934538134,1.77121182,2508.6,2508.5,4.01075705]
[1749934538936,1.77121182,2508.6,2508.5,0.80295705]
[1749934539142,2.56816182,2508.6,2508.5,0.00597705]
[1749934541037,2.56816182,2508.6,2508.5,0.80295705]
[1749934541233,2.56816182,2508.6,2508.5,0.00597705]
[1749934545433,5.77596182,2508.6,2508.5,0.00597705]
[1749934547441,2.56816182,2508.6,2508.5,0.00597705]
[1749934547643,7.13896182,2508.6,2508.5,0.00597705]
[1749934550841,7.2070545,2508.6,2508.5,0.00597705]
[1749934552239,2.6362545,2508.6,2508.5,0.80295705]
[1749934552439,1.9636545,2508.6,2508.5,0.80295705]
[1749934552940,1.89556182,2508.6,2508.5,0.80295705]
[1749934553142,1.89556182,2508.6,2508.5,0.00597705]
[1749934553947,1.9636545,2508.6,2508.5,0.00597705]
[1749934554847,1.89556182,2508.6,2508.5,0.00597705]
[1749934557250,1.89556182,2508.6,2508.5,0.64167705]
[1749934557954,1.9636545,2508.6,2508.5,0.64167705]
[1749934558753,1.9636545,2508.6,2508.5,1.43865705]
[1749934559657,1.1667045,2508.6,2508.5,1.43865705]
[1749934560155,1.09861182,2508.6,2508.5,1.43865705]
[1749934560657,1.89556182,2508.6,2508.5,1.31607705]
[1749934560857,1.89556182,2508.6,2508.5,2.11305705]
[1749934561057,1.09861182,2508.6,2508.5,3.38115705]
[1749934561557,1.09861182,2508.6,2508.5,6.58895705]
[1749934562753,0.79693,2508.7,2508.6,0.79695]
[1749934562950,1.89770972,2508.7,2508.6,2.17485]
[1749934563458,0.00597705,2509.0,2508.6,2.17485]
[1749934563654,0.00597705,2509.0,2508.9,0.79686]
[1749934563855,0.00597705,2509.0,2508.9,2.17476]
[1749934564050,0.00597705,2509.0,2508.9,2.82416]
[1749934565058,3.2078,2509.4,2508.9,9.22816]
[1749934565259,0.79669,2509.5,2509.4,0.79666]
[1749934565664,1.46562,2509.7,2509.6,0.79663]
[1749934565863,0.79663,2509.6,2509.5,2.81285]
[1749934566455,1.46562,2509.7,2509.5,2.0162]
[1749934566660,0.79662,2509.7,2509.6,0.79663]
[1749934566864,0.79662,2509.7,2509.6,1.47113]
[1749934567163,0.00597705,2509.8,2509.7,0.7966]
[1749934567370,0.00597705,2509.8,2509.7,2.1706]
[1749934567562,0.80254705,2509.8,2509.7,2.1706]
[1749934567862,0.00597705,2509.8,2509.7,2.1706]
[1749934568065,0.80254705,2509.8,2509.7,2.1706]
[1749934568668,0.80254705,2509.8,2509.7,1.374]
[1749934570969,0.80254705,2509.8,2509.7,4.5818]
[1749934571172,0.00597705,2509.8,2509.7,5.3784]
[1749934578166,0.6529,2510.3,2510.1,0.79646]
[1749934578372,0.79634,2510.6,2510.2,3.2078]
[1749934578572,0.79641,2510.3,2510.2,6.69543]
[1749934578869,0.7964,2510.4,2510.2,5.899]
[1749934579177,0.7964,2510.4,2510.3,0.79641]
[1749934580167,0.00597705,2510.6,2510.2,5.899]
[1749934580371,0.00597705,2510.6,2510.5,0.79635]
[1749934580779,0.80229705,2510.6,2510.5,0.79635]
[1749934581569,0.00597705,2510.6,2510.5,0.79635]
[1749934581867,0.00597705,2510.6,2510.5,4.00415]
[1749934584472,0.80229705,2510.6,2510.5,3.2078]
[1749934584677,0.79641,2510.3,2510.2,3.8575]
[1749934584881,1.99095,2510.4,2509.9,3.2078]
[1749934585075,0.79647,2510.1,2509.9,9.6008]
[1749934585475,0.79647,2510.1,2510.0,0.80248705]
[1749934585675,0.6651,2510.2,2510.1,0.79647]
[1749934585976,0.79642,2510.3,2510.2,0.79642]
[1749934586373,0.79644,2510.2,2510.1,0.6957]
[1749934586573,0.79647,2510.1,2510.0,0.00597705]
[1749934586773,1.47807,2510.1,2510.0,0.00597705]
[1749934587480,1.47807,2510.1,2510.0,0.80248705]
[1749934587684,0.6816,2510.1,2510.0,0.80248705]
[1749934588578,5.1424,2510.4,2510.0,0.00597705]
[1749934588579,0.79644,2510.3,2510.0,0.00597705]
[1749934588772,4.0042,2510.4,2510.3,0.79641]
[1749934589782,4.0042,2510.4,2510.2,0.79642]
[1749934590074,0.79641,2510.3,2510.2,0.79642]
[1749934590274,0.79647,2510.1,2510.0,0.80247705]
[1749934590680,0.79647,2510.1,2510.0,0.00597705]
[1749934591683,0.79647,2510.1,2510.0,0.80248705]
[1749934593177,0.79647,2510.1,2510.0,0.00597705]
[1749934593774,1.88561399,2510.1,2510.0,0.00597705]
[1749934594581,1.88613323,2510.1,2510.0,0.00597705]
[1749934595480,1.95422591,2510.1,2510.0,0.00597705]
[1749934596387,1.95422591,2510.1,2510.0,0.80248705]
[1749934596584,1.95422591,2510.1,2510.0,0.00597705]
[1749934597974,3.29732591,2510.1,2510.0,0.00597705]
[1749934600778,0.79666,2509.5,2509.4,4.64746]
[1749934600982,0.79666,2509.5,2509.4,4.00446]
[1749934601177,0.79665,2509.6,2509.5,0.79663]
[1749934601376,0.79666,2509.5,2509.4,4.00447]
[1749934601688,1.44782,2509.7,2509.6,0.79663]
[1749934601877,1.74303522,2509.7,2509.6,0.79663]
[1749934602283,1.09183522,2509.7,2509.6,0.79663]
[1749934602590,0.6512,2509.9,2509.8,0.79657]
[1749934602785,1.74287858,2509.9,2509.8,0.79657]
[1749934602994,0.79657,2509.8,2509.7,1.44418]
[1749934603189,1.88824858,2509.8,2509.7,1.44418]
[1749934603795,0.75329268,2510.1,2510.0,0.79651]
[1749934603991,0.75329268,2510.1,2510.0,4.00431]
[1749934603992,1.15972675,2510.1,2510.0,4.00431]
[1749934604287,0.79636,2510.5,2510.1,1.99119]
[1749934604491,1.88793581,2510.4,2510.3,0.7964]
[1749934605687,0.79641,2510.3,2510.2,2.78892]
[1749934607190,0.79637,2510.5,2510.4,0.79637]
[1749934607388,1.88806973,2510.5,2510.4,0.79637]
[1749934607587,1.09169973,2510.5,2510.4,0.79637]
[1749934608295,0.79644,2510.2,2510.1,7.0336]
[1749934608495,0.79651,2510.0,2509.9,3.2078]
[1749934609195,0.79651,2510.0,2509.9,4.00434]
[1749934609891,1.88838631,2510.0,2509.9,4.00434]
[1749934610692,0.7966,2509.7,2509.6,4.00443]
[1749934610897,0.79663,2509.6,2509.5,6.386]
[1749934611198,0.79663,2509.6,2509.5,7.18265]
[1749934611397,0.79666,2509.5,2509.4,1.45704705]
[1749934611597,1.45576,2509.5,2509.4,0.66037705]
[1749934611798,1.45576,2509.5,2509.4,1.45707705]